Workbook

Sheet 考生准考证信息（原始）
A1: 2022年江苏省宿迁市宿城区公开招聘公办学校教师考生总成绩及 进入体检阶段考生名单
A2: 准考证号 | B2: 单位名称 | C2: 职位代码 | D2: 职位名称 | E2: 笔试得分 | F2: 面试得分 | G2: 专业技能 测试得分 | H2: 总成绩 | I2: 是否进入 体检
A3: 2022700112 | B3: 宿迁市实验小学 | C3: 01 | D3: 小学语文教师 | E3: 65.5 | F3: 81.36 | H3: =E3*0.4+F3*0.6 -> 75.02 | I3: T
A4: 2022700104 | B4: 宿迁市实验小学 | C4: 01 | D4: 小学语文教师 | E4: 61.5 | F4: 82.18 | H4: 73.91 | I4: T
A5: 2022700125 | B5: 宿迁市实验小学 | C5: 01 | D5: 小学语文教师 | E5: 68.5 | F5: 76.44 | H5: 73.26 | I5: T
A6: 2022700217 | B6: 南师附中宿迁分校 | C6: 02 | D6: 小学语文教师 | E6: 70.5 | F6: 83.80 | H6: 78.48 | I6: T
A7: 2022700307 | B7: 南师附中宿迁分校 | C7: 02 | D7: 小学语文教师 | E7: 73 | F7: 81.28 | H7: 77.97 | I7: T
A8: 2022700224 | B8: 南师附中宿迁分校 | C8: 02 | D8: 小学语文教师 | E8: 69 | F8: 82.96 | H8: 77.38 | I8: T
A9: 2022700319 | B9: 南师附中宿迁分校 | C9: 02 | D9: 小学语文教师 | E9: 63.5 | F9: 84.84 | H9: 76.30 | I9: T
A10: 2022700212 | B10: 南师附中宿迁分校 | C10: 02 | D10: 小学语文教师 | E10: 71 | F10: 79.36 | H10: 76.02 | I10: T
A11: 2022700213 | B11: 南师附中宿迁分校 | C11: 02 | D11: 小学语文教师 | E11: 69 | F11: 78.78 | H11: 74.87 | I11: T
A12: 2022700226 | B12: 南师附中宿迁分校 | C12: 02 | D12: 小学语文教师 | E12: 69.5 | F12: 77.92 | H12: 74.55 | I12: T
A13: 2022700227 | B13: 南师附中宿迁分校 | C13: 02 | D13: 小学语文教师 | E13: 63 | F13: 81.94 | H13: 74.36
A14: 2022700223 | B14: 南师附中宿迁分校 | C14: 02 | D14: 小学语文教师 | E14: 68 | F14: 78.32 | H14: 74.19
A15: 2022700222 | B15: 南师附中宿迁分校 | C15: 02 | D15: 小学语文教师 | E15: 65.5 | F15: 79.42 | H15: 73.85
A16: 2022700214 | B16: 南师附中宿迁分校 | C16: 02 | D16: 小学语文教师 | E16: 60.5 | F16: 80.92 | H16: 72.75
A17: 2022700308 | B17: 南师附中宿迁分校 | C17: 02 | D17: 小学语文教师 | E17: 62 | F17: 78.66 | H17: 72.00
A18: 2022700312 | B18: 南师附中宿迁分校 | C18: 02 | D18: 小学语文教师 | E18: 60.5 | F18: 75.50 | H18: 69.50
A19: 2022700409 | B19: 宿迁市实验小学学院路校区（市项里学校） | C19: 03 | D19: 小学语文教师 | E19: 77 | F19: 84.66 | H19: 81.60 | I19: T
A20: 2022700525 | B20: 宿迁市实验小学学院路校区（市项里学校） | C20: 03 | D20: 小学语文教师 | E20: 72 | F20: 82.72 | H20: 78.43 | I20: T
A21: 2022700520 | B21: 宿迁市实验小学学院路校区（市项里学校） | C21: 03 | D21: 小学语文教师 | E21: 69 | F21: 84.66 | H21: 78.40 | I21: T
A22: 2022700509 | B22: 宿迁市实验小学学院路校区（市项里学校） | C22: 03 | D22: 小学语文教师 | E22: 71 | F22: 82.12 | H22: 77.67 | I22: T
A23: 2022700418 | B23: 宿迁市实验小学学院路校区（市项里学校） | C23: 03 | D23: 小学语文教师 | E23: 67 | F23: 84.58 | H23: 77.55 | I23: T
A24: 2022700517 | B24: 宿迁市实验小学学院路校区（市项里学校） | C24: 03 | D24: 小学语文教师 | E24: 68 | F24: 82.12 | H24: 76.47 | I24: T
A25: 2022700405 | B25: 宿迁市实验小学学院路校区（市项里学校） | C25: 03 | D25: 小学语文教师 | E25: 65 | F25: 83.42 | H25: 76.05 | I25: T
A26: 2022700402 | B26: 宿迁市实验小学学院路校区（市项里学校） | C26: 03 | D26: 小学语文教师 | E26: 63.5 | F26: 82.08 | H26: 74.65 | I26: T
A27: 2022700519 | B27: 宿迁市实验小学学院路校区（市项里学校） | C27: 03 | D27: 小学语文教师 | E27: 70 | F27: 77.16 | H27: 74.30 | I27: T
A28: 2022700516 | B28: 宿迁市实验小学学院路校区（市项里学校） | C28: 03 | D28: 小学语文教师 | E28: 64.5 | F28: 79.60 | H28: 73.56
A29: 2022700518 | B29: 宿迁市实验小学学院路校区（市项里学校） | C29: 03 | D29: 小学语文教师 | E29: 63.5 | F29: 78.82 | H29: 72.69
A30: 2022700515 | B30: 宿迁市实验小学学院路校区（市项里学校） | C30: 03 | D30: 小学语文教师 | E30: 65.5 | F30: 75.94 | H30: 71.76
A31: 2022700528 | B31: 宿迁市实验小学学院路校区（市项里学校） | C31: 03 | D31: 小学语文教师 | E31: 62.5 | F31: 77.68 | H31: 71.61
A32: 2022700411 | B32: 宿迁市实验小学学院路校区（市项里学校） | C32: 03 | D32: 小学语文教师 | E32: 62 | F32: 75.78 | H32: 70.27
A33: 2022700427 | B33: 宿迁市实验小学学院路校区（市项里学校） | C33: 03 | D33: 小学语文教师 | E33: 69.5 | F33: 0.00 | H33: 27.80
A34: 2022700423 | B34: 宿迁市实验小学学院路校区（市项里学校） | C34: 03 | D34: 小学语文教师 | E34: 66.5 | F34: 0.00 | H34: 26.60
A35: 2022700406 | B35: 宿迁市实验小学学院路校区（市项里学校） | C35: 03 | D35: 小学语文教师 | E35: 64 | F35: 0.00 | H35: 25.60
A36: 2022700601 | B36: 宿迁学院附属学校 | C36: 04 | D36: 小学语文教师 | E36: 70 | F36: 85.56 | H36: =E36*0.4+F36*0.6 -> 79.34 | I36: T
A37: 2022700613 | B37: 宿迁学院附属学校 | C37: 04 | D37: 小学语文教师 | E37: 68 | F37: 78.64 | H37: 74.38 | I37: T
A38: 2022700607 | B38: 宿迁学院附属学校 | C38: 04 | D38: 小学语文教师 | E38: 65 | F38: 78.10 | H38: 72.86 | I38: T
A39: 2022700626 | B39: 宿迁南洋学校（新区实小） | C39: 05 | D39: 小学语文教师 | E39: 70.5 | F39: 84.12 | H39: 78.67 | I39: T
A40: 2022700702 | B40: 宿迁南洋学校（新区实小） | C40: 05 | D40: 小学语文教师 | E40: 65.5 | F40: 81.16 | H40: 74.90 | I40: T
A41: 2022700621 | B41: 宿迁南洋学校（新区实小） | C41: 05 | D41: 小学语文教师 | E41: 64.5 | F41: 79.34 | H41: 73.40 | I41: T
A42: 2022700622 | B42: 宿迁南洋学校（新区实小） | C42: 05 | D42: 小学语文教师 | E42: 63.5 | F42: 79.52 | H42: 73.11
A43: 2022700618 | B43: 宿迁南洋学校（新区实小） | C43: 05 | D43: 小学语文教师 | E43: 67 | F43: 77.16 | H43: 73.10
A44: 2022700623 | B44: 宿迁南洋学校（新区实小） | C44: 05 | D44: 小学语文教师 | E44: 60.5 | F44: 0.00 | H44: 24.20
A45: 2022700716 | B45: 古城实验小学 | C45: 06 | D45: 小学语文教师 | E45: 70.5 | F45: 83.66 | H45: 78.40 | I45: T
A46: 2022700728 | B46: 古城实验小学 | C46: 06 | D46: 小学语文教师 | E46: 70 | F46: 81.94 | H46: 77.16 | I46: T
A47: 2022700705 | B47: 古城实验小学 | C47: 06 | D47: 小学语文教师 | E47: 65 | F47: 83.24 | H47: 75.94 | I47: T
A48: 2022700710 | B48: 古城实验小学 | C48: 06 | D48: 小学语文教师 | E48: 69 | F48: 78.20 | H48: 74.52 | I48: T
A49: 2022700709 | B49: 古城实验小学 | C49: 06 | D49: 小学语文教师 | E49: 63 | F49: 78.90 | H49: 72.54
A50: 2022700727 | B50: 古城实验小学 | C50: 06 | D50: 小学语文教师 | E50: 61 | F50: 75.44 | H50: 69.66
A51: 2022700801 | B51: 项里中心小学 | C51: 07 | D51: 小学语文教师 | E51: 71 | F51: 80.24 | H51: 76.54 | I51: T
A52: 2022700810 | B52: 项里中心小学 | C52: 07 | D52: 小学语文教师 | E52: 60 | F52: 82.08 | H52: 73.25 | I52: T
A53: 2022700822 | B53: 南师附中宿迁分校太湖路校区(市太湖路小学） | C53: 08 | D53: 小学语文教师 | E53: 69 | F53: 78.30 | H53: 74.58 | I53: T
A54: 2022700817 | B54: 南师附中宿迁分校太湖路校区(市太湖路小学） | C54: 08 | D54: 小学语文教师 | E54: 70.5 | F54: 76.68 | H54: 74.21 | I54: T
A55: 2022700824 | B55: 南师附中宿迁分校太湖路校区(市太湖路小学） | C55: 08 | D55: 小学语文教师 | E55: 68.5 | F55: 77.60 | H55: 73.96 | I55: T
A56: 2022700923 | B56: 南师附中宿迁分校太湖路校区(市太湖路小学） | C56: 08 | D56: 小学语文教师 | E56: 66.5 | F56: 77.82 | H56: 73.29 | I56: T
A57: 2022700903 | B57: 南师附中宿迁分校太湖路校区(市太湖路小学） | C57: 08 | D57: 小学语文教师 | E57: 60.5 | F57: 81.56 | H57: 73.14 | I57: T
A58: 2022700909 | B58: 南师附中宿迁分校太湖路校区(市太湖路小学） | C58: 08 | D58: 小学语文教师 | E58: 70.5 | F58: 72.74 | H58: 71.84 | I58: T
A59: 2022700816 | B59: 南师附中宿迁分校太湖路校区(市太湖路小学） | C59: 08 | D59: 小学语文教师 | E59: 63.5 | F59: 75.78 | H59: 70.87
A60: 2022700912 | B60: 南师附中宿迁分校太湖路校区(市太湖路小学） | C60: 08 | D60: 小学语文教师 | E60: 60.5 | F60: 77.62 | H60: 70.77
A61: 2022700823 | B61: 南师附中宿迁分校太湖路校区(市太湖路小学） | C61: 08 | D61: 小学语文教师 | E61: 64.5 | F61: 74.78 | H61: 70.67
A62: 2022700819 | B62: 南师附中宿迁分校太湖路校区(市太湖路小学） | C62: 08 | D62: 小学语文教师 | E62: 61 | F62: 76.48 | H62: 70.29
A63: 2022700918 | B63: 南师附中宿迁分校太湖路校区(市太湖路小学） | C63: 08 | D63: 小学语文教师 | E63: 60.5 | F63: 74.36 | H63: 68.82
A64: 2022700925 | B64: 南师附中宿迁分校太湖路校区(市太湖路小学） | C64: 08 | D64: 小学语文教师 | E64: 60.5 | F64: 72.92 | H64: 67.95
A65: 2022701001 | B65: 八一路小学 | C65: 09 | D65: 小学语文教师 | E65: 71.5 | F65: 81.68 | H65: 77.61 | I65: T
A66: 2022700930 | B66: 八一路小学 | C66: 09 | D66: 小学语文教师 | E66: 70.5 | F66: 77.44 | H66: 74.66 | I66: T
A67: 2022701007 | B67: 八一路小学 | C67: 09 | D67: 小学语文教师 | E67: 69.5 | F67: 76.36 | H67: 73.62 | I67: T
A68: 2022701015 | B68: 八一路小学 | C68: 09 | D68: 小学语文教师 | E68: 65 | F68: 77.62 | H68: 72.57
A69: 2022701017 | B69: 八一路小学 | C69: 09 | D69: 小学语文教师 | E69: 64 | F69: 0.00 | H69: 25.60
A70: 2022701025 | B70: 埠子中心小学 | C70: 10 | D70: 小学语文教师 | E70: 71.5 | F70: 84.42 | H70: 79.25 | I70: T
A71: 2022701101 | B71: 埠子中心小学 | C71: 10 | D71: 小学语文教师 | E71: 70 | F71: 83.02 | H71: 77.81 | I71: T
A72: 2022701123 | B72: 埠子中心小学 | C72: 10 | D72: 小学语文教师 | E72: 68 | F72: 83.76 | H72: 77.46 | I72: T
A73: 2022701110 | B73: 埠子中心小学 | C73: 10 | D73: 小学语文教师 | E73: 69.5 | F73: 81.20 | H73: 76.52
A74: 2022701102 | B74: 埠子中心小学 | C74: 10 | D74: 小学语文教师 | E74: 71.5 | F74: 79.44 | H74: 76.26
A75: 2022701111 | B75: 埠子中心小学 | C75: 10 | D75: 小学语文教师 | E75: 70.5 | F75: 78.44 | H75: 75.26
A76: 2022701117 | B76: 埠子中心小学 | C76: 10 | D76: 小学语文教师 | E76: 64.5 | F76: 79.40 | H76: 73.44
A77: 2022701029 | B77: 埠子中心小学 | C77: 10 | D77: 小学语文教师 | E77: 63 | F77: 79.76 | H77: 73.06
A78: 2022701018 | B78: 埠子中心小学 | C78: 10 | D78: 小学语文教师 | E78: 62.5 | F78: 79.16 | H78: 72.50
A79: 2022701223 | B79: 洋北中心小学 | C79: 11 | D79: 小学语文教师 | E79: 75 | F79: 79.08 | H79: 77.45 | I79: T
A80: 2022701213 | B80: 洋北中心小学 | C80: 11 | D80: 小学语文教师 | E80: 71 | F80: 80.32 | H80: 76.59 | I80: T
A81: 2022701218 | B81: 洋北中心小学 | C81: 11 | D81: 小学语文教师 | E81: 64 | F81: 81.04 | H81: 74.22 | I81: T
A82: 2022701228 | B82: 洋北中心小学 | C82: 11 | D82: 小学语文教师 | E82: 63 | F82: 81.54 | H82: 74.12
A83: 2022701203 | B83: 洋北中心小学 | C83: 11 | D83: 小学语文教师 | E83: 63.5 | F83: 79.84 | H83: 73.30
A84: 2022701221 | B84: 洋北中心小学 | C84: 11 | D84: 小学语文教师 | E84: 66.5 | F84: 77.44 | H84: 73.06
A85: 2022701205 | B85: 洋北中心小学 | C85: 11 | D85: 小学语文教师 | E85: 67.5 | F85: 76.46 | H85: 72.88
A86: 2022701305 | B86: 洋北中心小学 | C86: 11 | D86: 小学语文教师 | E86: 65 | F86: 76.50 | H86: 71.90
A87: 2022701206 | B87: 洋北中心小学 | C87: 11 | D87: 小学语文教师 | E87: 65.5 | F87: 0.00 | H87: 26.20
A88: 2022701313 | B88: 龙河中心小学 | C88: 12 | D88: 小学语文教师 | E88: 73.5 | F88: 77.06 | H88: 75.64 | I88: T
A89: 2022701505 | B89: 龙河中心小学 | C89: 12 | D89: 小学语文教师 | E89: 67.5 | F89: 80.80 | H89: 75.48 | I89: T
A90: 2022701323 | B90: 龙河中心小学 | C90: 12 | D90: 小学语文教师 | E90: 69 | F90: 79.70 | H90: 75.42 | I90: T
A91: 2022701322 | B91: 龙河中心小学 | C91: 12 | D91: 小学语文教师 | E91: 64 | F91: 81.18 | H91: 74.31 | I91: T
A92: 2022701408 | B92: 龙河中心小学 | C92: 12 | D92: 小学语文教师 | E92: 63.5 | F92: 81.38 | H92: 74.23 | I92: T
A93: 2022701330 | B93: 龙河中心小学 | C93: 12 | D93: 小学语文教师 | E93: 67 | F93: 79.04 | H93: 74.22 | I93: T
A94: 2022701326 | B94: 龙河中心小学 | C94: 12 | D94: 小学语文教师 | E94: 70.5 | F94: 76.30 | H94: 73.98 | I94: T
A95: 2022701409 | B95: 龙河中心小学 | C95: 12 | D95: 小学语文教师 | E95: 64.5 | F95: 80.08 | H95: 73.85
A96: 2022701310 | B96: 龙河中心小学 | C96: 12 | D96: 小学语文教师 | E96: 63 | F96: 80.98 | H96: 73.79
A97: 2022701517 | B97: 龙河中心小学 | C97: 12 | D97: 小学语文教师 | E97: 66 | F97: 78.70 | H97: 73.62
A98: 2022701525 | B98: 龙河中心小学 | C98: 12 | D98: 小学语文教师 | E98: 69.5 | F98: 75.98 | H98: 73.39
A99: 2022701314 | B99: 龙河中心小学 | C99: 12 | D99: 小学语文教师 | E99: 64 | F99: 79.06 | H99: 73.04
A100: 2022701411 | B100: 龙河中心小学 | C100: 12 | D100: 小学语文教师 | E100: 67 | F100: 76.38 | H100: =E100*0.4+F100*0.6 -> 72.63
A101: 2022701428 | B101: 龙河中心小学 | C101: 12 | D101: 小学语文教师 | E101: 62.5 | F101: 79.28 | H101: 72.57
A102: 2022701519 | B102: 龙河中心小学 | C102: 12 | D102: 小学语文教师 | E102: 63.5 | F102: 78.40 | H102: 72.44
A103: 2022701430 | B103: 龙河中心小学 | C103: 12 | D103: 小学语文教师 | E103: 62.5 | F103: 78.74 | H103: 72.24
A104: 2022701414 | B104: 龙河中心小学 | C104: 12 | D104: 小学语文教师 | E104: 66.5 | F104: 75.42 | H104: 71.85
A105: 2022701509 | B105: 龙河中心小学 | C105: 12 | D105: 小学语文教师 | E105: 62.5 | F105: 77.62 | H105: 71.57
A106: 2022701425 | B106: 龙河中心小学 | C106: 12 | D106: 小学语文教师 | E106: 64 | F106: 76.18 | H106: 71.31
A107: 2022701508 | B107: 龙河中心小学 | C107: 12 | D107: 小学语文教师 | E107: 61 | F107: 76.54 | H107: 70.32
A108: 2022701423 | B108: 龙河中心小学 | C108: 12 | D108: 小学语文教师 | E108: 61 | F108: 74.38 | H108: 69.03
A109: 2022701528 | B109: 龙河中心小学 | C109: 12 | D109: 小学语文教师 | E109: 61.5 | F109: 73.02 | H109: 68.41
A110: 2022701625 | B110: 龙河中心小学 | C110: 13 | D110: 小学语文教师 | E110: 79.5 | F110: 84.10 | H110: 82.26 | I110: T
A111: 2022701629 | B111: 龙河中心小学 | C111: 13 | D111: 小学语文教师 | E111: 79 | F111: 81.00 | H111: 80.20 | I111: T
A112: 2022701726 | B112: 龙河中心小学 | C112: 13 | D112: 小学语文教师 | E112: 70 | F112: 83.64 | H112: 78.18 | I112: T
A113: 2022701604 | B113: 龙河中心小学 | C113: 13 | D113: 小学语文教师 | E113: 71 | F113: 81.58 | H113: 77.35 | I113: T
A114: 2022701615 | B114: 龙河中心小学 | C114: 13 | D114: 小学语文教师 | E114: 65.5 | F114: 83.76 | H114: 76.46 | I114: T
A115: 2022701626 | B115: 龙河中心小学 | C115: 13 | D115: 小学语文教师 | E115: 67 | F115: 80.86 | H115: 75.32 | I115: T
A116: 2022701715 | B116: 龙河中心小学 | C116: 13 | D116: 小学语文教师 | E116: 61.5 | F116: 84.24 | H116: 75.14 | I116: T
A117: 2022701806 | B117: 龙河中心小学 | C117: 13 | D117: 小学语文教师 | E117: 65 | F117: 81.18 | H117: 74.71 | I117: T
A118: 2022701609 | B118: 龙河中心小学 | C118: 13 | D118: 小学语文教师 | E118: 62.5 | F118: 82.70 | H118: 74.62
A119: 2022701803 | B119: 龙河中心小学 | C119: 13 | D119: 小学语文教师 | E119: 67 | F119: 79.64 | H119: 74.58
A120: 2022701819 | B120: 龙河中心小学 | C120: 13 | D120: 小学语文教师 | E120: 64.5 | F120: 80.98 | H120: 74.39
A121: 2022701728 | B121: 龙河中心小学 | C121: 13 | D121: 小学语文教师 | E121: 65 | F121: 80.62 | H121: 74.37
A122: 2022701817 | B122: 龙河中心小学 | C122: 13 | D122: 小学语文教师 | E122: 63 | F122: 81.36 | H122: 74.02
A123: 2022701718 | B123: 龙河中心小学 | C123: 13 | D123: 小学语文教师 | E123: 64.5 | F123: 80.22 | H123: 73.93
A124: 2022701805 | B124: 龙河中心小学 | C124: 13 | D124: 小学语文教师 | E124: 65 | F124: 79.84 | H124: 73.90
A125: 2022701623 | B125: 龙河中心小学 | C125: 13 | D125: 小学语文教师 | E125: 61.5 | F125: 81.96 | H125: 73.78
A126: 2022701822 | B126: 龙河中心小学 | C126: 13 | D126: 小学语文教师 | E126: 66.5 | F126: 78.38 | H126: 73.63
A127: 2022701808 | B127: 龙河中心小学 | C127: 13 | D127: 小学语文教师 | E127: 67 | F127: 77.92 | H127: 73.55
A128: 2022701801 | B128: 龙河中心小学 | C128: 13 | D128: 小学语文教师 | E128: 64 | F128: 79.54 | H128: 73.32
A129: 2022701901 | B129: 龙河中心小学 | C129: 13 | D129: 小学语文教师 | E129: 61 | F129: 81.16 | H129: 73.10
A130: 2022701811 | B130: 龙河中心小学 | C130: 13 | D130: 小学语文教师 | E130: 66 | F130: 77.80 | H130: 73.08
A131: 2022701709 | B131: 龙河中心小学 | C131: 13 | D131: 小学语文教师 | E131: 63.5 | F131: 78.82 | H131: 72.69
A132: 2022701818 | B132: 龙河中心小学 | C132: 13 | D132: 小学语文教师 | E132: 61.5 | F132: 78.06 | H132: 71.44
A133: 2022701616 | B133: 龙河中心小学 | C133: 13 | D133: 小学语文教师 | E133: 67.5 | F133: 0.00 | H133: 27.00
A134: 2022702014 | B134: 罗圩中心小学 | C134: 14 | D134: 小学语文教师 | E134: 71.5 | F134: 84.06 | H134: 79.04 | I134: T
A135: 2022702101 | B135: 罗圩中心小学 | C135: 14 | D135: 小学语文教师 | E135: 68 | F135: 84.60 | H135: 77.96 | I135: T
A136: 2022701923 | B136: 罗圩中心小学 | C136: 14 | D136: 小学语文教师 | E136: 70 | F136: 82.50 | H136: 77.50 | I136: T
A137: 2022702111 | B137: 罗圩中心小学 | C137: 14 | D137: 小学语文教师 | E137: 65.5 | F137: 85.04 | H137: 77.22 | I137: T
A138: 2022701918 | B138: 罗圩中心小学 | C138: 14 | D138: 小学语文教师 | E138: 64 | F138: 83.98 | H138: 75.99 | I138: T
A139: 2022701914 | B139: 罗圩中心小学 | C139: 14 | D139: 小学语文教师 | E139: 63 | F139: 84.30 | H139: 75.78 | I139: T
A140: 2022702113 | B140: 罗圩中心小学 | C140: 14 | D140: 小学语文教师 | E140: 63 | F140: 84.18 | H140: 75.71
A141: 2022702008 | B141: 罗圩中心小学 | C141: 14 | D141: 小学语文教师 | E141: 61.5 | F141: 84.70 | H141: 75.42
A142: 2022702030 | B142: 罗圩中心小学 | C142: 14 | D142: 小学语文教师 | E142: 66 | F142: 81.46 | H142: 75.28
A143: 2022702015 | B143: 罗圩中心小学 | C143: 14 | D143: 小学语文教师 | E143: 63 | F143: 83.10 | H143: 75.06
A144: 2022702022 | B144: 罗圩中心小学 | C144: 14 | D144: 小学语文教师 | E144: 63.5 | F144: 82.06 | H144: 74.64
A145: 2022702102 | B145: 罗圩中心小学 | C145: 14 | D145: 小学语文教师 | E145: 63.5 | F145: 81.90 | H145: 74.54
A146: 2022702005 | B146: 罗圩中心小学 | C146: 14 | D146: 小学语文教师 | E146: 65.5 | F146: 79.84 | H146: 74.10
A147: 2022702023 | B147: 罗圩中心小学 | C147: 14 | D147: 小学语文教师 | E147: 62 | F147: 81.46 | H147: 73.68
A148: 2022702117 | B148: 罗圩中心小学 | C148: 14 | D148: 小学语文教师 | E148: 63.5 | F148: 79.62 | H148: 73.17
A149: 2022702110 | B149: 罗圩中心小学 | C149: 14 | D149: 小学语文教师 | E149: 61.5 | F149: 80.30 | H149: 72.78
A150: 2022702007 | B150: 罗圩中心小学 | C150: 14 | D150: 小学语文教师 | E150: 62 | F150: 76.74 | H150: 70.84
A151: 2022702203 | B151: 蔡集中心小学 | C151: 15 | D151: 小学语文教师 | E151: 70.5 | F151: 84.50 | H151: 78.90 | I151: T
A152: 2022702130 | B152: 蔡集中心小学 | C152: 15 | D152: 小学语文教师 | E152: 79 | F152: 76.86 | H152: 77.72 | I152: T
A153: 2022702306 | B153: 蔡集中心小学 | C153: 15 | D153: 小学语文教师 | E153: 72 | F153: 81.04 | H153: 77.42 | I153: T
A154: 2022702425 | B154: 蔡集中心小学 | C154: 15 | D154: 小学语文教师 | E154: 73.5 | F154: 78.80 | H154: 76.68 | I154: T
A155: 2022702205 | B155: 蔡集中心小学 | C155: 15 | D155: 小学语文教师 | E155: 67.5 | F155: 82.44 | H155: 76.46 | I155: T
A156: 2022702330 | B156: 蔡集中心小学 | C156: 15 | D156: 小学语文教师 | E156: 72 | F156: 79.28 | H156: 76.37 | I156: T
A157: 2022702213 | B157: 蔡集中心小学 | C157: 15 | D157: 小学语文教师 | E157: 72.5 | F157: 78.32 | H157: 75.99 | I157: T
A158: 2022702426 | B158: 蔡集中心小学 | C158: 15 | D158: 小学语文教师 | E158: 65 | F158: 83.30 | H158: 75.98 | I158: T
A159: 2022702222 | B159: 蔡集中心小学 | C159: 15 | D159: 小学语文教师 | E159: 69.5 | F159: 78.88 | H159: 75.13
A160: 2022702422 | B160: 蔡集中心小学 | C160: 15 | D160: 小学语文教师 | E160: 70.5 | F160: 77.94 | H160: 74.96
A161: 2022702326 | B161: 蔡集中心小学 | C161: 15 | D161: 小学语文教师 | E161: 70 | F161: 77.96 | H161: 74.78
A162: 2022702312 | B162: 蔡集中心小学 | C162: 15 | D162: 小学语文教师 | E162: 64.5 | F162: 81.62 | H162: 74.77
A163: 2022702209 | B163: 蔡集中心小学 | C163: 15 | D163: 小学语文教师 | E163: 65 | F163: 80.74 | H163: 74.44
A164: 2022702314 | B164: 蔡集中心小学 | C164: 15 | D164: 小学语文教师 | E164: 64 | F164: 81.16 | H164: =E164*0.4+F164*0.6 -> 74.30
A165: 2022702305 | B165: 蔡集中心小学 | C165: 15 | D165: 小学语文教师 | E165: 65.5 | F165: 79.98 | H165: 74.19
A166: 2022702421 | B166: 蔡集中心小学 | C166: 15 | D166: 小学语文教师 | E166: 66.5 | F166: 79.04 | H166: 74.02
A167: 2022702304 | B167: 蔡集中心小学 | C167: 15 | D167: 小学语文教师 | E167: 65.5 | F167: 79.60 | H167: 73.96
A168: 2022702216 | B168: 蔡集中心小学 | C168: 15 | D168: 小学语文教师 | E168: 65 | F168: 79.86 | H168: 73.92
A169: 2022702206 | B169: 蔡集中心小学 | C169: 15 | D169: 小学语文教师 | E169: 65 | F169: 79.46 | H169: 73.68
A170: 2022702329 | B170: 蔡集中心小学 | C170: 15 | D170: 小学语文教师 | E170: 63 | F170: 79.48 | H170: 72.89
A171: 2022702420 | B171: 蔡集中心小学 | C171: 15 | D171: 小学语文教师 | E171: 63 | F171: 76.34 | H171: 71.00
A172: 2022702230 | B172: 蔡集中心小学 | C172: 15 | D172: 小学语文教师 | E172: 65.5 | F172: 73.60 | H172: 70.36
A173: 2022702501 | B173: 蔡集中心小学 | C173: 15 | D173: 小学语文教师 | E173: 65 | F173: 0.00 | H173: 26.00
A174: 2022702514 | B174: 王官集中心小学 | C174: 16 | D174: 小学语文教师 | E174: 72.5 | F174: 79.82 | H174: 76.89 | I174: T
A175: 2022702505 | B175: 王官集中心小学 | C175: 16 | D175: 小学语文教师 | E175: 67 | F175: 82.58 | H175: 76.35 | I175: T
A176: 2022702605 | B176: 王官集中心小学 | C176: 16 | D176: 小学语文教师 | E176: 64 | F176: 81.72 | H176: 74.63 | I176: T
A177: 2022702521 | B177: 王官集中心小学 | C177: 16 | D177: 小学语文教师 | E177: 66.5 | F177: 79.44 | H177: 74.26
A178: 2022702518 | B178: 王官集中心小学 | C178: 16 | D178: 小学语文教师 | E178: 63 | F178: 80.02 | H178: 73.21
A179: 2022702515 | B179: 王官集中心小学 | C179: 16 | D179: 小学语文教师 | E179: 68.5 | F179: 76.14 | H179: 73.08
A180: 2022702502 | B180: 王官集中心小学 | C180: 16 | D180: 小学语文教师 | E180: 64 | F180: 76.50 | H180: 71.50
A181: 2022702601 | B181: 王官集中心小学 | C181: 16 | D181: 小学语文教师 | E181: 63.5 | F181: 75.32 | H181: 70.59
A182: 2022702511 | B182: 王官集中心小学 | C182: 16 | D182: 小学语文教师 | E182: 63 | F182: 73.82 | H182: 69.49
A183: 2022707121 | B183: 宿迁市实验小学 | C183: 17 | D183: 小学数学教师 | E183: 63.5 | F183: 71.66 | H183: 68.40 | I183: T
A184: 2022706309 | B184: 南师附中宿迁分校 | C184: 18 | D184: 小学数学教师 | E184: 80 | F184: 84.04 | H184: 82.42 | I184: T
A185: 2022706228 | B185: 南师附中宿迁分校 | C185: 18 | D185: 小学数学教师 | E185: 74.5 | F185: 75.26 | H185: 74.96 | I185: T
A186: 2022706301 | B186: 南师附中宿迁分校 | C186: 18 | D186: 小学数学教师 | E186: 70 | F186: 70.52 | H186: 70.31
A187: 2022706308 | B187: 南师附中宿迁分校 | C187: 18 | D187: 小学数学教师 | E187: 62.5 | F187: 69.56 | H187: 66.74
A188: 2022706312 | B188: 南师附中宿迁分校 | C188: 18 | D188: 小学数学教师 | E188: 62.5 | F188: 0.00 | H188: 25.00
A189: 2022706019 | B189: 宿迁市实验小学学院路校区（市项里学校） | C189: 19 | D189: 小学数学教师 | E189: 78.5 | F189: 77.36 | H189: 77.82 | I189: T
A190: 2022706025 | B190: 宿迁市实验小学学院路校区（市项里学校） | C190: 19 | D190: 小学数学教师 | E190: 66.5 | F190: 69.48 | H190: 68.29 | I190: T
A191: 2022706010 | B191: 宿迁市实验小学学院路校区（市项里学校） | C191: 19 | D191: 小学数学教师 | E191: 66 | F191: 69.30 | H191: 67.98 | I191: T
A192: 2022705924 | B192: 宿迁市实验小学学院路校区（市项里学校） | C192: 19 | D192: 小学数学教师 | E192: 66.5 | F192: 67.78 | H192: 67.27 | I192: T
A193: 2022705518 | B193: 宿迁学院附属学校 | C193: 20 | D193: 小学数学教师 | E193: 86.5 | F193: 78.90 | H193: 81.94 | I193: T
A194: 2022705524 | B194: 宿迁学院附属学校 | C194: 20 | D194: 小学数学教师 | E194: 71 | F194: 76.60 | H194: 74.36 | I194: T
A195: 2022705516 | B195: 宿迁学院附属学校 | C195: 20 | D195: 小学数学教师 | E195: 71.5 | F195: 72.98 | H195: 72.39
A196: 2022705809 | B196: 古城实验小学 | C196: 22 | D196: 小学数学教师 | E196: 78.5 | F196: 71.78 | H196: 74.47 | I196: T
A197: 2022705804 | B197: 古城实验小学 | C197: 22 | D197: 小学数学教师 | E197: 61 | F197: 71.38 | H197: 67.23
A198: 2022706318 | B198: 项里中心小学 | C198: 23 | D198: 小学数学教师 | E198: 62.5 | F198: 78.10 | H198: 71.86 | I198: T
A199: 2022706403 | B199: 项里中心小学 | C199: 23 | D199: 小学数学教师 | E199: 67 | F199: 73.28 | H199: 70.77 | I199: T
A200: 2022706122 | B200: 南师附中宿迁分校太湖路校区(市太湖路小学） | C200: 24 | D200: 小学数学教师 | E200: 77.5 | F200: 74.84 | H200: 75.90 | I200: T
... 306 more rows
